Cogmind - Beta 15 @@@ ROGUE MODE // 2025.05.29 @ 00:38:36 Player: Andru7428 Result: Destroyed self with Grenade Launcher Performance ------------- Evolutions (0) 0 Regions Visited (1) 200 Robots Destroyed (10) 50 Value Destroyed (326) 326 Prototype IDs (0) 0 Alien Tech Used (0) 0 Bonus (0) 0 TOTAL SCORE: 576 Bonus ------- None Cogmind --------- Core Integrity 0/250 Matter 285/300 Energy 94/100 System Corruption 0% Temperature Cool (9) Movement Core (400) Ox7 Location -10/Materials Parts ------- > --- POWER (1) -------- (None) > --- PROPULSION (2) --- (None) > --- UTILITY (2) ------ Large Storage Unit > --- WEAPON (2) ------- Grenade Launcher > --- INVENTORY (15) --- Ion Engine Aluminum Leg Wheel Wheel Compact Wheel Small Storage Unit Targeting Computer Peak State ------------ > --- POWER ------------ Ion Engine > --- PROPULSION ------- Light Treads Light Treads > --- UTILITY ---------- Large Storage Unit Seismic Detector > --- WEAPON ----------- Small Laser Assault Rifle > --- INVENTORY -------- Ion Engine Aluminum Leg Aluminum Leg Wheel Wheel Compact Wheel Small Storage Unit Targeting Computer EM Pulse Gun Light Assault Rifle [Rating: 8] Favorites ----------- Power Ion Engine Engine Ion Engine Propulsion Light Treads Treads Light Treads Leg Aluminum Leg Utility Seismic Detector Device Seismic Detector Storage Large Storage Unit Weapon Small Laser Energy Gun Small Laser Ballistic Gun Light Assault Rifle Launcher Grenade Launcher Build | -11 -10 ------- Run | Yrd Mat Slots Evolved . | . . Power . | . . Propulsion . | . . Utility . | . . Weapon . | . . Parts Attached 13 | 6 7 Power 1 | 1 . Engine 1 | 1 . Core . | . . Reactor . | . . Propulsion 3 | 2 1 Treads 2 | 2 . Leg 1 | . 1 Wheel . | . . Hover . | . . Flight . | . . Utility 4 | 1 3 Device 2 | . 2 Storage 2 | 1 1 Processor . | . . Hackware . | . . Protection . | . . Artifact . | . . Weapon 5 | 2 3 Energy Gun 2 | 1 1 Energy Cannon . | . . Ballistic Gun 2 | 1 1 Ballistic Cannon . | . . Launcher 1 | . 1 Special Weapon . | . . Impact Weapon . | . . Slashing Weapon . | . . Piercing Weapon . | . . Special Melee Weapon . | . . Unidentified Prototypes . | . . Parts Lost 10 | . 10 Power 1 | . 1 Propulsion 3 | . 3 Utility 2 | . 2 Weapon 4 | . 4 Highest Loss Streak 10 | . 10 To Critical Strikes . | . . Average Backups 8 | 5 8 Power 1 | 1 1 Propulsion 4 | 2 4 Utility 1 | . 1 Weapon 1 | 2 1 Tool/Special . | . . Unused Backups 6 | . 6 Power 1 | . 1 Propulsion 4 | . 4 Utility 1 | . 1 Weapon . | . . Tool/Special . | . . Average Slot Usage (%) 93 | . 93 Engine 13 | . 13 Treads 25 | . 25 Leg 2 | . 2 Device 10 | . 10 Storage 14 | . 14 Energy Gun 12 | . 12 Ballistic Gun 14 | . 14 Peak Build Rating 8 | 6 8 Average Rating 6 | 3 7 On Entrance 3 | . 6 Naked Turns . | . . Heaviest Build 29 | 12 29 Greatest Support 40 | 40 40 Greatest Overweight (x) 2 | . 2 Average Overweight (x) . | . . Largest Inventory Capacity 15 | 8 15 Average Capacity 11 | 7 12 Most Carried 11 | 8 11 Average Carried 8 | 5 8 Final Capacity 15 | 8 15 Final Carried 7 | 6 7 Class Distribution -------------------- 100% | Mutant Dominant Class ---------------- Mutant | -10/Materials Resources | -11 -10 ----------- Run | Yrd Mat Matter Collected 431 | 238 193 Remotely . | . . Salvage Created 363 | . 363 Parts 17 | . 17 Haulers Intercepted . | . . Recyclers Shooed . | . . Parts Field Recycled . | . . Retrieved Matter . | . . Parts Self-Destructed . | . . Prevented . | . . Kills | -11 -10 ------- Run | Yrd Mat Combat Hostiles Destroyed 9 | . 9 Guns 8 | . 8 AOE 1 | . 1 Classes Destroyed 2 | . 2 Tunneler 1 | . 1 Grunt 9 | . 9 Best Kill Streak 5 | . 5 Combat Bots Only 5 | . 5 Max Kills in Single Turn 1 | . 1 Gunslinging . | . . Exploded 1 | . 1 Melee . | . . Uniques/NPCs Destroyed . | . . Combat | -11 -10 -------- Run | Yrd Mat Hostile Shots Fired 104 | . 104 Missed 20 | . 20 Hits 84 | . 84 Projectile 84 | . 84 Critical Strikes 4 | . 4 Damage Taken 1164 | . 1164 Core 283 | . 283 Absorbed by Shields . | . . Core Remaining (%) 100 | 100 . Volleys Fired 54 | . 54 Largest 2 | . 2 Hottest 60 | . 60 Shots Fired 106 | . 106 Gun 104 | . 104 Cannon . | . . Launcher 2 | . 2 Special . | . . Kinetic 52 | . 52 Thermal 47 | . 47 Explosive 2 | . 2 Electromagnetic 5 | . 5 Robot Hit Streak 17 | . 17 Robot Miss Streak 3 | . 3 Penetration Max . | . . Secondary Targets . | . . Shots Hit Robots 71 | . 71 Core Hits 31 | . 31 Critical Kills . | . . Critical Parts Destroyed . | . . Critical Strikes . | . . Melee Attacks . | . . Impact . | . . Slashing . | . . Piercing . | . . Sneak Attacks . | . . Combat Hostiles . | . . Follow-up Attacks . | . . Damage Inflicted 893 | . 893 Guns 791 | . 791 Cannons . | . . Explosions 75 | . 75 Melee . | . . Ramming 27 | . 27 Kinetic 366 | . 366 Thermal 359 | . 359 Explosive 75 | . 75 Electromagnetic 66 | . 66 Impact . | . . Slashing . | . . Piercing . | . . Highest Corruption . | . . Average Corruption . | . . Corruption Purged . | . . Corruption Blocked . | . . Overload Shots . | . . Overflow Damage 26 | . 26 Projectiles . | . . Explosions 26 | . 26 Melee . | . . Knockbacks . | . . Impact . | . . Kinetic . | . . Secondary . | . . Self-Inflicted Damage 76 | . 76 Shots 2 | . 2 Rammed 5 | . 5 Targets Rammed 15 | . 15 Kicked 10 | . 10 Crushed . | . . Highest Temperature 225 | . 225 Average Temperature 73 | . 73 Received Heat Transfer 681 | . 681 Effects 2 | . 2 Interference 2 | . 2 Siege Activations . | . . Martial Activations . | . . Shielding Activations . | . . Robots Disrupted . | . . Combat Hostiles . | . . Robots Corrupted . | . . Combat Hostiles . | . . Parts Fried . | . . Impact Corruptions . | . . Robots Melted . | . . Combat Hostiles . | . . Parts Melted . | . . Heat Transferred 800 | . 800 Parts Sabotaged . | . . Parts Stolen . | . . Parts Stripped . | . . Power Chain Reactions . | . . Alert | -11 -10 ------- Run | Yrd Mat Maximum Alert Level . | . . Low Security (%) 100 | 100 100 Level 1 . | . . Level 2 . | . . Level 3 . | . . Level 4 . | . . Level 5 . | . . High Security . | . . Max Security . | . . Peak Influence 98 | . 98 Initial . | . . Average 21 | . 25 Influence Increases 228 | . 228 Destroy 0b10 Robot/C 180 | . 180 Destroy 0b10 Robot/NC 5 | . 5 Destroy Leader 30 | . 30 Successful Hack 4 | . 4 Destroy Structure 9 | . 9 Influence Decreases 191 | . 191 Time Decay 91 | . 91 Lost Part 100 | . 100 Squads Dispatched 3 | . 3 Investigation 1 | . 1 Extermination . | . . Reinforcement 2 | . 2 Assault . | . . Garrison . | . . Intercept . | . . Searches Triggered . | . . Construction Impeded . | . . Haulers Reinforced . | . . Active Scanning Responses . | . . Cargo Convoy Interrupts . | . . Stealth | -11 -10 --------- Run | Yrd Mat Distress Signals . | . . Communications Jammed . | . . Distress Signals . | . . Times Spotted 20 | . 20 Peak Tracking Total 6 | . 6 Tactical Retreats . | . . Traps | -11 -10 ------- Run | Yrd Mat Traps Triggered 1 | . 1 Indirectly . | . . Trap Hack Attempts . | . . Triggered . | . . Disarmed . | . . Reprogrammed . | . . Reused . | . . Traps Extracted . | . . Installed . | . . Triggered . | . . Machines | -11 -10 ---------- Run | Yrd Mat Machines Disabled . | . . Max in Single Turn . | . . Machines Repaired . | . . Machines Dismantled . | . . Machines Sabotaged . | . . Overloaded Fab Kills . | . . Hacking | -11 -10 --------- Run | Yrd Mat Machines Accessed 2 | . 2 Terminals 2 | . 2 Fabricators . | . . Repair Stations . | . . Recycling Units . | . . Scanalyzers . | . . Garrison Access . | . . Total Hacks 6 | . 6 Successful 3 | . 3 Failed 3 | . 3 Catastrophic 1 | . 1 Database Lockouts . | . . Manual 6 | . 6 Terminals 6 | . 6 Fabricators . | . . Repair Stations . | . . Recycling Units . | . . Scanalyzers . | . . Garrison Access . | . . Terminal Hacks . | . . Fabricator Hacks . | . . Repair Station Hacks . | . . Recycling Unit Hacks . | . . Scanalyzer . | . . Garrison Access Hacks . | . . Unauthorized Hacks 3 | . 3 Terminals 3 | . 3 Botnet 1 | . 1 Skim 2 | . 2 Fabricators . | . . Repair Stations . | . . Recycling Units . | . . Scanalyzers . | . . Garrison Access . | . . Data Cores Recovered . | . . Used . | . . Hacking Detections 2 | . 2 Full Trace Events . | . . Feedback Events . | . . Feedback Blocked . | . . Robot Schematics Acquired . | . . Robots Built . | . . Authchips . | . . Time . | . . Total Robot Build Rating . | . . Part Schematics Acquired . | . . Parts Built . | . . Authchips . | . . Time . | . . Total Part Build Rating . | . . Parts Repaired . | . . Time . | . . Parts Recycled . | . . Recycled Matter . | . . Retrieved Matter . | . . Retrieved Components . | . . Parts Scanalyzed . | . . Part Schematics Acquired . | . . Parts Damaged . | . . Bothacking | -11 -10 ------------ Run | Yrd Mat Used RIF Installer . | . . Robots Hacked . | . . Non-combat . | . . Combat . | . . Robot Hacks Applied . | . . Relay Couplers Released . | . . Fabnet Peak Effective % . | . . Robots Rewired . | . . Allies Hacked . | . . Hacks Repelled . | . . Allies | -11 -10 -------- Run | Yrd Mat Total Allies . | . . Largest Group . | . . Highest-Rated Group . | . . Highest-Rated Ally . | . . Total Orders . | . . Ally Attacks . | . . Total Damage . | . . Kills . | . . Allies Corrupted . | . . Allies Melted . | . . Intel | -11 -10 ------- Run | Yrd Mat Active Infowar (turns) 399 | . 399 Seismic 399 | . 399 Robot Analysis Total . | . . Derelict Logs Recovered . | . . Drone Launches . | . . Drone Recoveries . | . . Exploration | -11 -10 ------------- Run | Yrd Mat Turns Passed 652 | 84 568 Spaces Moved 231 | 50 181 Core 11 | 11 . Treads 210 | 39 171 Legs 10 | . 10 Wheels . | . . Hover . | . . Flight . | . . Fastest Speed 50 | 50 160 Average Speed 159 | 135 165 Slowest Speed 260 | 160 260 Overloaded Moves . | . . Propulsion Burnouts . | . . Robots Hopped . | . . Potential Cave-ins . | . . Cave-ins Triggered . | . . Exploration Rate (%) 19 | 4 34 Regions Visited 1 Branch Regions . Pre-discovered Areas . | . . Known Exits Taken . | . . Unknown Exits Taken 1 | 1 . Scrap Searched . | . . Spaces Dug . | . . Terrain Destroyed 10 | . 10 Melee . | . . Projectile . | . . AOE 10 | . 10 Terrain Rammed . | . . Walls Destroyed . | . . Machines Disabled . | . . Actions | -11 -10 --------- Run | Yrd Mat Total 392 | 65 327 Wait 66 | . 66 Move 230 | 49 181 Hop . | . . Pick Up 13 | 10 3 Fast Attach 4 | 2 2 Attach 8 | 4 4 Detach . | . . Swap 2 | . 2 Drop . | . . Fire 54 | . 54 Melee . | . . Ram . | . . Kick 10 | . 10 Crush 5 | . 5 Escape Stasis . | . . Rewire . | . . Trap . | . . Miscellaneous . | . . Route ------- -11/Scrapyard -10/Materials (discovered 1 exit: [*Sub]) History --------- Turn | Location | Event 10 | -11/Scrapyard | Discovered new exit (range 16) 85 | -11/Scrapyard | Entered Materials 158 | -10/Materials | Discovered new exit (range 7) 305 | -10/Materials | Build established: Mutant 577 | -10/Materials | Core integrity fell below 50% 630 | -10/Materials | Core integrity fell below 20% 653 | -10/Materials | Destroyed self with Grenade Launcher Last Messages --------------- 00613_ Kicked G-47 Trooper. 00614_ K-01 Serf cleans the Terminal. 00616_ Kicked G-47 Trooper. 00619_ G-47 Trooper IFF system glitched. 00621_ Kicked G-47 Trooper out of the way. 00624_ K-01 Serf cleans the TF Node. 00624_ Kicked G-47 Trooper. 00625_ G-47 Trooper IFF system glitched. 00626_ Kicked G-47 Trooper. 00627_ Ion Engine destroyed. 00629_ Kicked G-47 Trooper. 00631_ Lgt. Treads destroyed. 00632_ Kicked G-47 Trooper. 00644_ M-13 Machinist repairs G-47 Trooper. 00651_ Aluminum Leg destroyed. 00651_ Destroyed Aluminum Leg. 00651_ Imp. Heat Sink destroyed. 00651_ Destroyed Imp. Heat Sink. 00651_ G-34 Mercenary destroyed. 00653_ Lgt. Assault Rifle destroyed. Map ----- +----------------------------------------------------+ | | | | | | | | | | | | | | | | | | | | | | | ?????????????????????????????????????????????????? | | ?????????????????????????????????????????????????? | | ?????????????????????????????????????????????????? | | ?????????????????????????????????????????????????? | | ?????????????????????????????????????????????????? | | ?????????????????????????????????????????????????? | | ?????????????????????????????????????????????????? | | ?????????????????????????????????????????????????? | | ?????????????????????????????????????????????????? | | ??????????????????????????##?????????????????????? | | ?????????????????????????? #?????????????????????? | | ???????????????????????##? #?????????????????????? | | ?????????????????????### # ##????????????????????? | | ??????????????????#+## ####?????????????????? | | ??????# ??????????# ## g@%[ #?????????????????? | | ??????# ???????### ## """ [ #?????????????????? | | ??##### ####### """ #?????????????????? | | ? * !""" #?????????????????? | | ? "%%m!% #?????????????????? | | ? r%% %%#"" #?????????????????? | | ????????#######*# %#"T #?????????????????? | | ??????????????#=#######"" #?????????????????? | | ??????????????#=#?????# #?????????????????? | | ??????????????#%################?????????????????? | | ??????????????#*== #????????????????????? | | ??????????????#%[ ##????????########???? | | ??????????????#!= "#????????# #???? | | ??????????????# """ T#????????# """ #???? | | ??????????????# """ "#????????# """ #???? | | ??????????????# """ """ ##????????# """ #???? | | ??????????????# "R """ ##????????# #???? | | ??????????????# """ """ T#????????# #???? | | ??????????????# ##????????####+###???? | | ??????????????# #????????????# #?????? | | ??????????????#!########### #????????????# #?????? | | ??????????????#%??????????# #?############ #?????? | | ??????????????#*??????????# #?# ## #?????? | | ??????????????# ??????????# #?# ## #?????? | | ??????????????# ??????????# #?# ! ## #?????? | +----------------------------------------------------+ Best States ------------- Heat Dissipation 39 Energy Generation 10 Energy Capacity 250 Matter Stores 300 Matter Capacity 300 Sight Range 16 Terrain Scan Density 10 Evasion (%) 50 Recoil Reduction 2 Item Schematics ----------------- None Robot Schematics ------------------ None Fabricated ------------ Nothing Repaired ---------- Nothing Alien Tech Used ----------------- None Achievements -------------- None Challenges ------------ None Game ------ Seed DispersalTrapBrace Manual? 0 Play Time 00:06:13 Cumulative 345.2 hours Start 2025.05.29 @ 00:34:57 End 2025.05.29 @ 00:38:36 Sessions 1 Manual Loads 0 Difficulty Rogue Special Mode None Game No. 221 Rogue 221 Adventurer 0 Explorer 0 Win Type - Total 6 Types 6/0/0/0/0/0/0/0/0/0 Lore% 74 Gallery% 73 Achievement% 66 Wizard Run 0 Options --------- Layout 1 ASCII 0 Keyboard 1 Movement Numpad Keybinds 0 Fullscreen 2 Font 24/Smallcaps Map View 50x35 Zoom Use 0% Tactical HUD 1 Map Filters NONE Filters NONE Steam 1 RUN: 2eac2855-32d8-4a7a-a46d-84abb957ccf9